fUST/lending_fUST_20250630
["ID","MTS","AMOUNT","RATE_DAILY","PERIOD"]
[368606084,1751230247586,-891.82,0.0002025,2]
[368606085,1751230247596,-460.0,0.0002025,2]
[368606086,1751230247605,-460.0,0.0002025,2]
[368606087,1751230247614,-796.58,0.0002025,2]
[368606088,1751230247623,-581.0,0.0002025,2]
[368606089,1751230247632,-4058.09,0.0002025,2]
[368606090,1751230247641,-733.28,0.0002025,2]
[368606091,1751230247651,-801.21,0.0002025,2]
[368606092,1751230247660,-1408.45,0.0002025,2]
[368606093,1751230247670,-460.0,0.0002025,2]
[368606094,1751230247679,-1055.83,0.0002025,2]
[368606095,1751230247688,-380.04,0.00020251,2]
[368606096,1751230247698,-504.41,0.00020251,2]
[368606097,1751230247707,-621.98,0.00020251,2]
[368606098,1751230247716,-839.52,0.00020251,2]
[368606099,1751230247726,-503.31,0.00020251,2]
[368606100,1751230247736,-619.75,0.00020251,2]
[368606101,1751230247747,-4324.34,0.00020251,2]
[368606102,1751230247757,-1441.65,0.00020251,2]
[368606103,1751230247766,-460.0,0.00020251,2]
[368606104,1751230247776,-1304.03,0.00020252,2]
[368606105,1751230247786,-1695.2,0.00020252,2]
[368606106,1751230247795,-460.0,0.00020252,2]
[368606107,1751230247806,-1513.69,0.00020252,2]
[368606108,1751230247816,-588.15,0.00020253,2]
[368606109,1751230247825,-333.140918,0.00020253,2]
[368606110,1751230247834,-333.140918,0.00020253,2]
[368606111,1751230247843,-151.0,0.00020253,2]
[368606112,1751230247855,-630.61,0.00020254,2]
[368606113,1751230247864,-151.0,0.00020255,2]
[368606114,1751230247873,-151.0,0.00020255,2]
[368606115,1751230247882,-151.0,0.00020255,2]
[368606116,1751230247892,-151.0,0.00020257,2]
[368606117,1751230247901,-151.0,0.00020257,2]
[368606118,1751230247910,-224.88482,0.00020257,2]
[368606119,1751230247920,-151.0,0.00020257,2]
[368606120,1751230247929,-386.891437,0.00020257,2]
[368606121,1751230247939,-386.891437,0.00020257,2]
[368606122,1751230247948,-151.0,0.00020257,2]
[368606123,1751230247957,-151.0,0.00020257,2]
[368606124,1751230247967,-500.0,0.0002026,2]
[368606125,1751230247976,-412.06989226,0.00020264,2]
[368606126,1751230247985,-151.0,0.000203,3]
[368606127,1751230247995,-151.0,0.00020317,2]
[368606128,1751230248004,-151.0,0.00020317,2]
[368606129,1751230248015,-151.0,0.00020317,2]
[368606130,1751230248024,-164.821234,0.00020317,2]
[368606131,1751230248034,-151.0,0.00020317,2]
[368606132,1751230248044,-219.47229,0.00020317,2]
[368606133,1751230248054,-151.0,0.00020317,2]
[368606134,1751230248064,-219.47229,0.00020317,2]
[368606135,1751230248074,-193.867146,0.00020317,2]
[368606136,1751230248084,-193.867146,0.00020317,2]
[368606137,1751230248094,-287.384468,0.00020317,2]
[368606138,1751230248104,-287.384468,0.00020317,2]
[368606139,1751230248113,-152.508771,0.0002032,2]
[368606140,1751230248124,-12567.05932091,0.0002032,3]
[368606141,1751230248134,-213.82031328,0.0002032,3]
[368606142,1751230248143,-160.0,0.0002032,3]
[368606143,1751230248153,-160.0,0.0002032,3]
[368606144,1751230248163,-847.31290578,0.0002032,3]
[368606145,1751230248172,-4940.34060657,0.00020348,3]
[368606146,1751230248182,-153.0,0.00020356,2]
[368606147,1751230248192,-153.0,0.00020356,2]
[368606148,1751230248202,-153.0,0.00020356,2]
[368606149,1751230248212,-153.0,0.00020356,2]
[368606150,1751230248222,-5000.0,0.00020407,2]
[368606151,1751230248231,-17876.73506449,0.00020411,2]
[368606152,1751230248241,-500.0,0.00020419,2]
[368606153,1751230248251,-450.0,0.00020419,2]
[368606154,1751230248260,-500.0,0.00020419,2]
[368606155,1751230248270,-500.0,0.00020419,2]
[368606156,1751230248280,-500.0,0.00020419,2]
[368606157,1751230248289,-500.0,0.00020419,2]
[368606158,1751230248299,-500.0,0.00020419,2]
[368606159,1751230248308,-500.0,0.00020419,2]
[368606160,1751230248318,-500.0,0.00020419,2]
[368606161,1751230248328,-500.0,0.00020419,2]
[368606162,1751230248337,-500.0,0.00020419,2]
[368606163,1751230248346,-500.0,0.00020419,2]
[368606164,1751230248356,-500.0,0.00020419,2]
[368606165,1751230248365,-500.0,0.00020419,2]
[368606166,1751230248375,-500.0,0.00020419,2]
[368606167,1751230248385,-500.0,0.00020419,2]
[368606168,1751230248394,-500.0,0.00020419,2]
[368606169,1751230248404,-500.0,0.00020419,2]
[368606170,1751230248413,-500.0,0.00020419,2]
[368606171,1751230248423,-500.0,0.00020419,2]
[368606172,1751230248432,-495.62583992,0.00020419,2]
[368606173,1751230248441,-500.0,0.00020419,2]
[368606174,1751230248451,-500.0,0.00020419,2]
[368606175,1751230248460,-500.0,0.00020419,2]
[368606176,1751230248470,-500.0,0.00020419,2]
[368606177,1751230248479,-500.0,0.00020419,2]
[368606178,1751230248488,-500.0,0.00020419,2]
[368606179,1751230248497,-500.0,0.00020419,2]
[368606180,1751230248507,-500.0,0.00020419,2]
[368606181,1751230248516,-500.0,0.00020419,2]
[368606182,1751230248526,-500.0,0.00020419,2]
[368606183,1751230248535,-500.0,0.00020419,2]
[368606184,1751230248544,-500.0,0.00020419,2]
[368606185,1751230248554,-500.0,0.00020419,2]
[368606186,1751230248563,-846.05130432,0.00020419,2]
[368606187,1751230248572,-5445.34860202,0.00020419,2]
[368606188,1751230248582,-846.05130432,0.00020419,2]
[368606189,1751230248592,-5445.34860202,0.00020419,2]
[368606190,1751230248601,-846.05130432,0.00020419,2]
[368606191,1751230248610,-5445.34860202,0.00020419,2]
[368606192,1751230248619,-846.05130432,0.00020419,2]
[368606193,1751230248629,-222.36317504,0.00020419,2]
[368606194,1751230248638,-846.05130432,0.00020419,2]
[368606195,1751230248648,-5445.34860202,0.00020419,2]
[368606196,1751230248657,-846.05130432,0.00020419,2]
[368606197,1751230248667,-5445.34860202,0.00020419,2]
[368606198,1751230248676,-846.05130432,0.00020419,2]
[368606199,1751230248685,-500.0,0.00020419,2]
[368606200,1751230248695,-500.0,0.00020419,2]
[368606201,1751230248705,-5445.34860202,0.00020419,2]
[368606202,1751230248715,-500.0,0.00020419,2]
[368606203,1751230248724,-500.0,0.00020419,2]
[368606204,1751230248734,-846.05130432,0.00020419,2]
[368606205,1751230248743,-846.05130432,0.00020419,2]
[368606206,1751230248753,-846.05130432,0.00020419,2]
[368606207,1751230248763,-500.0,0.00020419,2]
[368606208,1751230248773,-5445.34860202,0.00020419,2]
[368606209,1751230248782,-846.05130432,0.00020419,2]
[368606210,1751230248792,-5445.34860202,0.00020419,2]
[368606211,1751230248802,-489.79362648,0.00020419,2]
[368606212,1751230248817,-846.05130432,0.00020419,2]
[368606213,1751230248827,-860.91436779,0.00020419,2]
[368606214,1751230248836,-860.91436779,0.00020419,2]
[368606215,1751230248848,-1500.0,0.00020428,2]
[368606216,1751230248858,-603.0,0.00020433,2]
[368606217,1751230248867,-1500.0,0.00020435,2]
[368606218,1751230248876,-1471.63683534,0.00020462,2]
[368606219,1751230248887,-1500.0,0.00020468,2]
[368606220,1751230248897,-1213.40118887,0.00020468,2]
[368606221,1751230248906,-456.96597759,0.00020468,2]
[368606222,1751230248915,-1500.0,0.00020468,2]
[368606223,1751230248924,-1500.0,0.00020468,2]
[368606224,1751230248934,-1500.0,0.00020468,2]
[368606225,1751230248944,-1500.0,0.00020468,2]
[368606226,1751230248954,-538.25510388,0.00020468,2]
[368606227,1751230248963,-1500.0,0.00020468,2]
[368606228,1751230248973,-1230.65643113,0.00020468,2]
[368606229,1751230248983,-1018.5430501,0.00020468,2]
[368606230,1751230248992,-1500.0,0.00020468,2]
[368606231,1751230249002,-151.0,0.00020469,2]
[368606232,1751230249011,-223.618972,0.00020469,2]
[368606233,1751230249020,-223.618972,0.00020469,2]
[368606234,1751230249030,-151.0,0.00020469,2]
[368606235,1751230249039,-714.0,0.00020488,2]
[368606236,1751230249048,-151.0,0.000205,4]
[368606237,1751230249058,-13171.80173947,0.00020519,2]
[368606238,1751230249067,-1300.76,0.00020523,2]
[368606239,1751230249077,-548.96,0.00020523,2]
[368606240,1751230249086,-2669.64,0.00020523,2]
[368606241,1751230249096,-2871.13,0.00020523,2]
[368606242,1751230249106,-581.33,0.00020523,2]
[368606243,1751230249116,-504.3,0.00020523,2]
[368606244,1751230249125,-296.53320115,0.00020523,2]
[368606245,1751230249135,-3312.27,0.00020523,2]
[368606246,1751230249144,-2726.22,0.00020523,2]
[368606247,1751230249154,-3016.84,0.00020523,2]
[368606248,1751230249163,-460.0,0.00020523,2]
[368606249,1751230249173,-460.0,0.00020523,2]
[368606250,1751230249182,-1538.42,0.00020523,2]
[368606251,1751230249192,-520.82,0.00020523,2]
[368606252,1751230249201,-1985.43,0.00020523,2]
[368606253,1751230249210,-423.53597,0.00020523,2]
[368606254,1751230249220,-423.53597,0.00020523,2]
[368606255,1751230249230,-515.02,0.00020523,2]
[368606256,1751230249239,-1490.99,0.00020523,2]
[368606257,1751230249249,-485.73,0.00020523,2]
[368606258,1751230249258,-529.49,0.00020523,2]
[368606259,1751230249267,-460.0,0.00020523,2]
[368606260,1751230249276,-151.0,0.00020524,2]
[368606261,1751230249286,-460.0,0.00020524,2]
[368606262,1751230249295,-460.0,0.00020524,2]
[368606263,1751230249305,-1201.000652,0.00020524,2]
[368606264,1751230249316,-1201.000652,0.00020524,2]
[368606265,1751230249327,-151.0,0.00020524,2]
[368606266,1751230249336,-1211.78,0.00020524,2]
[368606267,1751230249345,-460.0,0.00020524,2]
[368606268,1751230249354,-460.0,0.00020524,2]
[368606269,1751230249363,-824.24,0.00020524,2]
[368606270,1751230249373,-460.0,0.00020524,2]
[368606271,1751230249382,-553.06,0.00020524,2]
[368606272,1751230249391,-530.53,0.00020524,2]
[368606273,1751230249401,-460.0,0.00020524,2]
[368606274,1751230249410,-1100.5,0.00020524,2]
[368606275,1751230249420,-502.99,0.00020524,2]
[368606276,1751230249429,-891.82,0.00020524,2]
[368606277,1751230249439,-460.0,0.00020524,2]
[368606278,1751230249448,-460.0,0.00020524,2]
[368606279,1751230249458,-796.58,0.00020524,2]
[368606280,1751230249467,-581.0,0.00020524,2]
[368606281,1751230249476,-4058.09,0.00020524,2]
[368606282,1751230249485,-733.28,0.00020524,2]
[368606283,1751230249495,-801.21,0.00020524,2]
[368606284,1751230249505,-1408.45,0.00020524,2]
[368606285,1751230249514,-460.0,0.00020524,2]
[368606286,1751230249523,-1055.83,0.00020524,2]
[368606287,1751230249532,-504.41,0.00020525,2]
[368606288,1751230249542,-621.98,0.00020525,2]
[368606289,1751230249551,-839.52,0.00020525,2]
[368606290,1751230249560,-503.31,0.00020525,2]
[368606291,1751230249570,-619.75,0.00020525,2]
[368606292,1751230249579,-4324.34,0.00020525,2]
[368606293,1751230249588,-1441.65,0.00020525,2]
[368606294,1751230249597,-460.0,0.00020525,2]
[368606295,1751230249607,-1304.03,0.00020526,2]
[368606296,1751230249617,-1695.2,0.00020526,2]
[368606297,1751230249626,-460.0,0.00020526,2]
[368606298,1751230249635,-1513.69,0.00020526,2]
[368606299,1751230249644,-151.0,0.00020527,2]
[368606300,1751230249653,-151.0,0.00020527,2]
[368606301,1751230249663,-151.0,0.00020527,2]
[368606302,1751230249672,-151.0,0.00020527,2]
[368606303,1751230249681,-287.753045,0.00020527,2]
[368606304,1751230249691,-287.753045,0.00020527,2]
[368606305,1751230249700,-151.0,0.00020527,2]
[368606306,1751230249709,-151.0,0.00020527,2]
[368606307,1751230249718,-151.0,0.00020527,2]
[368606308,1751230249728,-588.15,0.00020527,2]
[368606309,1751230249737,-630.61,0.00020528,2]
[368606310,1751230249746,-151.0,0.00020529,2]
[368606311,1751230249755,-151.0,0.00020532,2]
[368606312,1751230249764,-151.0,0.00020532,2]
[368606313,1751230249773,-386.891437,0.00020532,2]
[368606314,1751230249782,-386.891437,0.00020532,2]
[368606315,1751230249791,-176.815034,0.0002055,4]
[368606316,1751230249802,-151.0,0.00020555,2]
[368606317,1751230249812,-189.586783,0.00020555,2]
[368606318,1751230249821,-250.133199,0.00020555,2]
[368606319,1751230249830,-151.0,0.00020555,2]
[368606320,1751230249839,-212.532158,0.00020555,2]
[368606321,1751230249848,-4940.34060657,0.00020555,3]
[368606322,1751230249857,-19742.72723519,0.00020562,2]
[368606323,1751230249974,-829.87816649,0.00018231,2]
[368606324,1751230249985,-460.0,0.00018879,2]
[368606325,1751230249994,-150.0,0.000189,2]
[368606326,1751230250003,-460.0,0.00019153,2]
[368606327,1751230250013,-460.0,0.00019427,2]
[368606328,1751230250023,-181.92183356,0.00019701,2]
[368606329,1751230250036,-278.07816644,0.00019701,2]
[368606330,1751230250045,-310.42183356,0.00019975,2]
[368606331,1751230250480,-460.0,0.00018332,2]
[368606332,1751230250490,-389.80179425,0.00018332,2]
[368606333,1751230250501,-70.19820575,0.00018332,2]
[368606334,1751230250511,-460.0,0.00018606,2]
[368606335,1751230250521,-460.0,0.00018606,2]
[368606336,1751230250531,-460.0,0.0001888,2]
[368606337,1751230250541,-366.235562,0.00019123,2]
[368606338,1751230250551,-460.0,0.00019154,2]
[368606339,1751230250562,-534.42,0.00019428,2]
[368606340,1751230250572,-149.57816644,0.00019975,2]
[368606341,1751230250582,-460.0,0.00020249,2]
[368606342,1751230250591,-460.0,0.00020523,2]
[368606343,1751230250600,-2422.64163833,0.00020562,2]
[368606344,1751230250613,-490.2945645,0.00020562,2]
[368606345,1751230250939,-460.0,0.00018332,2]
[368606346,1751230250949,-460.0,0.00018334,2]
[368606347,1751230250959,-460.0,0.00018606,2]
[368606348,1751230250968,-460.0,0.00018608,2]
[368606349,1751230250978,-460.0,0.0001888,2]
[368606350,1751230250987,-460.0,0.00018882,2]
[368606351,1751230250996,-829.87816649,0.00018884,2]
[368606352,1751230251006,-460.0,0.00019156,2]
[368606353,1751230251015,-460.0,0.0001943,2]
[368606354,1751230251024,-460.0,0.00019704,2]
[368606355,1751230251033,-460.0,0.00019978,2]
[368606356,1751230251042,-460.0,0.00020252,2]
[368606357,1751230251051,-11897.3530246,0.00020562,2]
[368606358,1751230251359,-3651.88656089,0.00020562,2]
[368606359,1751230251370,-379.15810898,0.00020562,2]
[368606360,1751230251382,-29958.94277088,0.00020562,2]
[368606361,1751230251391,-333.140918,0.00020562,2]
[368606362,1751230251400,-333.140918,0.00020562,2]
[368606363,1751230251409,-151.0,0.00020562,2]
[368606364,1751230251419,-219.47229,0.00020562,2]
[368606365,1751230251428,-151.0,0.00020562,2]
[368606366,1751230251437,-219.47229,0.00020562,2]
[368606367,1751230251446,-151.0,0.00020562,2]
[368606368,1751230251456,-287.384468,0.00020562,2]
[368606369,1751230251465,-287.384468,0.00020562,2]
[368606370,1751230251474,-193.867146,0.00020569,2]
[368606371,1751230251483,-193.867146,0.00020569,2]
[368606372,1751230251492,-177.921,0.00020572,2]
[368606373,1751230251500,-57.22597212,0.00020572,2]
[368606374,1751230251515,-816.00007,0.00020572,2]
[368606375,1751230659404,-176.14673602,0.00018231,2]
[368606376,1751230661184,-167.18271929,0.00018231,2]
[368606378,1751230693935,374.103009,0.00013699,2]
[368606380,1751230781378,-176.21527701,0.00018132,2]
[368606381,1751231044614,500.0,0.00018068,2]
[368606382,1751231102374,5000.0,0.000181,2]
[368606383,1751231117610,4951.6959475,0.000181,2]
[368606384,1751231117634,48.3040525,0.000181,2]
[368606385,1751231132759,204.32636082,0.0001811,2]
[368606386,1751231181206,174.9613519,0.00017469,2]
[368606387,1751231209144,8620.71228728,0.00017331,2]
[368606388,1751231209169,16279.28771272,0.00017331,2]
[368606389,1751231374438,10000.0,0.0001733,2]
[368606401,1751231432575,-167.18271929,0.00018228,2]
[368606402,1751231432585,-662.47046045,0.00018229,2]
[368606404,1751231432594,-1200.0,0.00018327,2]
[368606406,1751231432603,-300.0,0.00018327,2]
[368606408,1751231432613,-186.0,0.00018327,2]
[368606410,1751231432622,-300.0,0.00018327,2]
[368606411,1751231432631,-300.0,0.00018327,2]
[368606413,1751231432642,-460.0,0.00018328,2]
[368606415,1751231432651,-460.0,0.00018328,2]
[368606417,1751231432660,-460.17,0.00018328,2]
[368606419,1751231432670,-535.05,0.00018328,2]
[368606421,1751231432680,-1389.15369664,0.00018328,2]
[368606424,1751231432696,-510.9,0.00018328,2]
[368606426,1751231432707,-32.56630336,0.00018328,2]
[368606428,1751231432717,-460.0,0.00018328,2]
[368606430,1751231432727,-460.0,0.00018328,2]
[368606432,1751231432737,-296.78419313,0.00018328,2]
[368606434,1751231432748,-163.21580687,0.00018328,2]
[368606436,1751231432757,-460.0,0.00018329,2]
[368606438,1751231432767,-460.0,0.00018329,2]
[368606440,1751231432777,-77.30286835,0.00018329,2]
[368606444,1751231432788,-382.69713165,0.00018329,2]
[368606446,1751231432798,-460.0,0.00018329,2]
[368606447,1751231432807,-1629.48496548,0.00018329,2]
[368606469,1751231438463,-2808.63,0.00018328,2]
[368606470,1751231438473,-460.0,0.00018328,2]
[368606471,1751231438484,-53.24503452,0.00018329,2]
[368606472,1751231438495,-243.38899453,0.00018329,2]
[368606473,1751231438521,-216.61100547,0.00018329,2]
[368606474,1751231438531,-1366.18,0.00018329,2]
[368606475,1751231438540,-460.0,0.00018329,2]
[368606476,1751231438550,-577.95137339,0.00018329,2]
[368606477,1751231438559,-2536.25,0.00018329,2]
[368606478,1751231438569,-460.0,0.00018329,2]
[368606479,1751231438579,-460.0,0.00018329,2]
[368606480,1751231438589,-620.64,0.00018329,2]
[368606481,1751231438599,-460.0,0.00018329,2]
[368606482,1751231438608,-654.36,0.00018329,2]
[368606483,1751231438618,-460.0,0.00018329,2]
[368606484,1751231438628,-546.76,0.00018329,2]
[368606485,1751231438637,-460.0,0.00018329,2]
[368606486,1751231438647,-460.0,0.00018329,2]
[368606487,1751231438657,-460.0,0.00018329,2]
[368606488,1751231438667,-2558.12,0.00018329,2]
[368606489,1751231438676,-460.0,0.00018329,2]
[368606490,1751231438685,-460.0,0.00018329,2]
[368606491,1751231438695,-859.86,0.00018329,2]
[368606492,1751231438705,-460.0,0.00018329,2]
[368606493,1751231438714,-3042.19,0.00018329,2]
[368606494,1751231438724,-2143.58858934,0.00018329,2]
[368606495,1751231438736,-1093.96141066,0.00018329,2]
[368606496,1751231438745,-476.42,0.00018329,2]
[368606497,1751231438754,-500.0,0.00018329,2]
[368606498,1751231438764,-460.0,0.00018329,2]
[368606499,1751231438773,-460.0,0.00018329,2]
[368606500,1751231438783,-460.0,0.00018329,2]
[368606501,1751231438792,-1474.57,0.00018329,2]
[368606502,1751231438801,-532.24,0.00018329,2]
[368606503,1751231438811,-460.0,0.00018329,2]
[368606504,1751231438821,-533.75,0.00018329,2]
[368606505,1751231438830,-460.0,0.00018329,2]
[368606506,1751231438839,-460.0,0.00018329,2]
[368606507,1751231438849,-460.0,0.00018329,2]
[368606508,1751231438858,-460.0,0.00018329,2]
[368606509,1751231438867,-460.0,0.00018329,2]
[368606510,1751231438877,-460.0,0.00018329,2]
[368606511,1751231438886,-460.0,0.00018329,2]
[368606512,1751231438896,-1015.38,0.00018329,2]
[368606513,1751231438905,-861.66,0.00018329,2]
[368606514,1751231438914,-5634.64285913,0.00018329,2]
[368606515,1751231438923,-460.0,0.0001833,2]
[368606516,1751231438932,-460.0,0.0001833,2]
[368606517,1751231438942,-460.0,0.0001833,2]
[368606518,1751231438952,-460.0,0.0001833,2]
[368606519,1751231438961,-460.0,0.0001833,2]
[368606520,1751231438971,-460.0,0.0001833,2]
[368606521,1751231438981,-460.0,0.0001833,2]
[368606522,1751231438991,-550.4,0.0001833,2]
[368606523,1751231439000,-460.0,0.0001833,2]
[368606524,1751231439009,-460.0,0.0001833,2]
[368606525,1751231439018,-779.39,0.0001833,2]
[368606526,1751231439029,-523.21,0.0001833,2]
[368606527,1751231439038,-460.0,0.0001833,2]
[368606528,1751231439048,-651.82,0.0001833,2]
[368606529,1751231439059,-460.0,0.0001833,2]
[368606530,1751231439068,-460.0,0.0001833,2]
[368606531,1751231439078,-460.0,0.0001833,2]
[368606532,1751231439088,-460.0,0.0001833,2]
[368606533,1751231439098,-460.0,0.0001833,2]
[368606534,1751231439108,-460.0,0.0001833,2]
[368606535,1751231439118,-460.0,0.0001833,2]
[368606536,1751231439129,-578.04,0.0001833,2]
[368606537,1751231439139,-419.06159599,0.0001833,2]
[368606538,1751231439149,-3970.58,0.0001833,2]
[368606539,1751231439158,-460.0,0.0001833,2]
[368606540,1751231439168,-460.0,0.0001833,2]
[368606541,1751231439179,-1352.99,0.0001833,2]
[368606542,1751231439188,-460.0,0.0001833,2]
[368606543,1751231439198,-500.0,0.0001833,2]
[368606544,1751231439207,-500.0,0.0001833,2]
[368606545,1751231439216,-460.0,0.0001833,2]
[368606546,1751231439226,-473.8,0.0001833,2]
[368606547,1751231439236,-460.0,0.0001833,2]
[368606548,1751231439246,-575.12,0.0001833,2]
[368606549,1751231439255,-1314.52,0.0001833,2]
[368606550,1751231439264,-754.6,0.0001833,2]
[368606551,1751231439274,-460.0,0.0001833,2]
[368606552,1751231439284,-460.0,0.00018331,2]
[368606553,1751231439294,-425.55643975,0.00018331,2]
[368606554,1751231439303,-428.54,0.00018331,2]
[368606555,1751231439313,-531.17,0.00018331,2]
[368606556,1751231439323,-460.0,0.00018331,2]
[368606557,1751231439333,-460.0,0.00018331,2]
[368606558,1751231439343,-460.0,0.00018331,2]
[368606559,1751231439352,-460.0,0.00018331,2]
[368606560,1751231439362,-460.0,0.00018331,2]
[368606561,1751231439371,-460.0,0.00018331,2]
[368606562,1751231439381,-460.0,0.00018332,2]
[368606563,1751231439390,-460.0,0.00018332,2]
[368606564,1751231439399,-460.0,0.00018332,2]
[368606565,1751231439409,-460.0,0.00018332,2]
[368606566,1751231439421,-460.0,0.00018332,2]
[368606567,1751231439431,-524.51021353,0.00018332,2]
[368606568,1751231439441,-474.72,0.00018333,2]
[368606569,1751231439450,-291.01243297,0.00018333,2]
[368606570,1751231439462,-460.0,0.00018333,2]
[368606571,1751231439471,-460.0,0.00018333,2]
[368606572,1751231439480,-223.0,0.0001851,2]
[368606573,1751231439491,-460.0,0.00018602,2]
[368606574,1751231439501,-460.0,0.00018602,2]
[368606575,1751231439510,-460.17,0.00018602,2]
[368606576,1751231439520,-535.05,0.00018602,2]
[368606577,1751231439529,-1932.62,0.00018602,2]
[368606578,1751231439539,-460.0,0.00018602,2]
[368606579,1751231439548,-460.0,0.00018602,2]
[368606580,1751231439558,-2808.63,0.00018602,2]
[368606581,1751231439567,-460.0,0.00018603,2]
[368606582,1751231439577,-315.47,0.00018603,2]
[368606583,1751231439587,-460.0,0.00018603,2]
[368606584,1751231439596,-1682.73,0.00018603,2]
[368606585,1751231439605,-460.0,0.00018603,2]
[368606586,1751231439615,-1366.18,0.00018603,2]
[368606587,1751231439624,-460.0,0.00018603,2]
[368606588,1751231439633,-2536.25,0.00018603,2]
[368606589,1751231439643,-460.0,0.00018603,2]
[368606590,1751231439654,-460.0,0.00018603,2]
[368606591,1751231439664,-620.64,0.00018603,2]
[368606592,1751231439673,-460.0,0.00018603,2]
[368606593,1751231439683,-654.36,0.00018603,2]
[368606594,1751231439693,-460.0,0.00018603,2]
[368606595,1751231439703,-546.76,0.00018603,2]
[368606596,1751231439713,-460.0,0.00018603,2]
[368606597,1751231439722,-460.0,0.00018603,2]
[368606598,1751231439732,-460.0,0.00018603,2]
[368606599,1751231439741,-2558.12,0.00018603,2]
[368606600,1751231439750,-460.0,0.00018603,2]
[368606601,1751231439761,-460.0,0.00018603,2]
[368606602,1751231439771,-859.86,0.00018603,2]
[368606603,1751231439780,-3042.19,0.00018603,2]
[368606604,1751231439790,-3237.55,0.00018603,2]
[368606605,1751231439800,-476.42,0.00018603,2]
[368606606,1751231439809,-460.0,0.00018603,2]
[368606607,1751231439819,-500.0,0.00018603,2]
[368606608,1751231439831,-460.0,0.00018603,2]
[368606609,1751231439840,-1474.57,0.00018603,2]
[368606610,1751231439850,-532.24,0.00018603,2]
[368606611,1751231439859,-460.0,0.00018603,2]
[368606612,1751231439869,-533.75,0.00018603,2]
[368606613,1751231439878,-460.0,0.00018603,2]
[368606614,1751231439888,-460.0,0.00018603,2]
[368606615,1751231439898,-460.0,0.00018603,2]
[368606616,1751231439907,-460.0,0.00018603,2]
[368606617,1751231439916,-460.0,0.00018603,2]
[368606618,1751231439926,-460.0,0.00018603,2]
[368606619,1751231439935,-460.0,0.00018603,2]
[368606620,1751231439945,-1015.38,0.00018603,2]
[368606621,1751231439954,-861.66,0.00018603,2]
[368606622,1751231439965,-460.0,0.00018604,2]
[368606623,1751231439975,-460.0,0.00018604,2]
[368606624,1751231439985,-460.0,0.00018604,2]
[368606625,1751231439994,-151.97,0.00018604,2]
[368606626,1751231440004,-460.0,0.00018604,2]
[368606627,1751231440014,-460.0,0.00018604,2]
[368606629,1751231440024,-550.4,0.00018604,2]
[368606630,1751231440034,-280.99,0.00018604,2]
[368606631,1751231440044,-460.0,0.00018604,2]
[368606632,1751231440054,-779.39,0.00018604,2]
[368606633,1751231440064,-523.21,0.00018604,2]
[368606634,1751231440074,-460.0,0.00018604,2]
[368606635,1751231440084,-651.82,0.00018604,2]
[368606636,1751231440094,-460.0,0.00018604,2]
[368606637,1751231440103,-460.0,0.00018604,2]
[368606638,1751231440113,-460.0,0.00018604,2]
[368606639,1751231440123,-460.0,0.00018604,2]
[368606640,1751231440132,-460.0,0.00018604,2]
[368606641,1751231440142,-460.0,0.00018604,2]